Cogmind - Beta 14 @@@ ROGUE MODE // 2024.12.26 @ 01:58:37 Player: Darby Result: Destroyed by G-47 Trooper with Particle Gun Performance ------------- Evolutions (1) 500 Regions Visited (6) 1200 Robots Destroyed (225) 1125 Value Destroyed (4929) 4929 Prototype IDs (19) 380 Alien Tech Used (0) 0 Bonus (1039) 1039 TOTAL SCORE: 9173 Bonus ------- High Alert Combat Kills 1046 Follower Combat Kills 112 Friendly Fire -119 Cogmind --------- Core Integrity 0/400 Matter 254/400 Energy 265/265 System Corruption 1% Temperature Cool (9) Movement Rolling (116) Ox2 Location -8/Mines Parts ------- > --- POWER (1) -------- Improved Ion Engine > --- PROPULSION (3) --- Wheel Wheel Compact Wheel > --- UTILITY (3) ------ Huge Storage Unit Medium Matter Pod Weapon Shielding > --- WEAPON (2) ------- Mini Grenade Launcher Axe > --- INVENTORY (25) --- Light Ion Engine Advanced Treads Wheel Wheel Combat Airjet Flight Unit Flight Unit Flight Unit Flight Unit Flight Unit Improved Heat Sink Medium Storage Unit Compact Battery (200) Structural Scanner Improved Sensor Array Improved Signal Interpreter ECM Suite Hacking Suite Particle Gun Minigun Makeshift Shrapnel Gun Datajack Plasma Cutter Peak State ------------ > --- POWER ------------ Light Angular Momentum Engine > --- PROPULSION ------- Wheel Compact Wheel Compact Wheel > --- UTILITY ---------- Huge Storage Unit Reactive Plating Shield Generator > --- WEAPON ----------- Improved EM Shotgun Improved EM Shotgun > --- INVENTORY -------- Improved Ion Engine Advanced Treads Combat Airjet Flight Unit Flight Unit Flight Unit Flight Unit Flight Unit Improved Heat Sink Medium Storage Unit Compact Battery Structural Scanner Sensor Array Signal Interpreter Seismic Detector ECM Suite Hacking Suite Hacking Suite Improved EM Shotgun Rocket Launcher Mini Grenade Launcher Datajack Plasma Cutter Axe Signal Generator [Rating: 25] Favorites ----------- Power Heavy Ion Engine Engine Heavy Ion Engine Power Core Light Nuclear Core Propulsion Wheel Treads Light Treads Leg Improved Aluminum Leg Wheel Wheel Utility Huge Storage Unit Device Seismic Detector Storage Huge Storage Unit Hackware Hacking Suite Protection Reactive Plating Weapon Axe Energy Gun Improved EM Shotgun Ballistic Gun Minigun Ballistic Cannon Light Cannon Launcher Rocket Launcher Special Weapon Mining Laser Impact Weapon Maul Slashing Weapon Axe Special Melee Weapon Datajack Build | -11 -10 -10 -9 -9 -9 -8 ------- Run | Yrd Mat Min Mat Min Exi Min Slots Evolved 2 | . . . 2 . . . Power . | . . . . . . . Propulsion 1 | . . . 1 . . . Utility 1 | . . . 1 . . . Weapon . | . . . . . . . Parts Attached 249 | 7 52 8 94 9 1 78 Power 8 | 1 1 . 4 . . 2 Engine 7 | 1 1 . 3 . . 2 Core 1 | . . . 1 . . . Reactor . | . . . . . . . Propulsion 62 | 2 27 2 14 3 . 14 Treads 17 | . 13 . 4 . . . Leg 1 | . . . . 1 . . Wheel 44 | 2 14 2 10 2 . 14 Hover . | . . . . . . . Flight . | . . . . . . . Utility 19 | 2 4 . 7 . . 6 Device 8 | 1 1 . 5 . . 1 Storage 4 | 1 2 . . . . 1 Processor . | . . . . . . . Hackware 1 | . . . . . . 1 Protection 6 | . 1 . 2 . . 3 Artifact . | . . . . . . . Weapon 160 | 2 20 6 69 6 1 56 Energy Gun 60 | 1 9 1 35 3 . 11 Energy Cannon . | . . . . . . . Ballistic Gun 11 | 1 . . . . . 10 Ballistic Cannon 7 | . 3 2 2 . . . Launcher 44 | . . 3 16 2 . 23 Special Weapon 7 | . 7 . . . . . Impact Weapon 1 | . 1 . . . . . Slashing Weapon 28 | . . . 16 1 . 11 Piercing Weapon . | . . . . . . . Special Melee Weapon 2 | . . . . . 1 1 Unidentified Prototypes 3 | . . . 3 . . . Parts Lost 17 | . 3 . 2 . . 12 Power 2 | . 1 . . . . 1 Propulsion 6 | . . . 2 . . 4 Utility 4 | . . . . . . 4 Weapon 5 | . 2 . . . . 3 Highest Loss Streak 3 | . 2 . 1 . . 3 To Critical Strikes . | . . . . . . . Average Slot Usage (%) 96 | . 99 100 97 100 100 94 Engine 11 | . 13 14 8 11 11 10 Wheel 30 | . 26 28 29 33 33 32 Device 9 | . 14 . 10 11 11 9 Storage 12 | . 14 14 11 11 11 11 Protection 8 | . . 14 10 11 11 8 Energy Gun 8 | . 11 13 13 12 . 4 Ballistic Gun 3 | . 5 . . . . 5 Ballistic Cannon 2 | . 4 8 2 . . . Launcher 1 | . . 5 . . . 2 Slashing Weapon 5 | . . . 5 8 11 8 Peak Build Rating 25 | 8 11 13 25 25 24 25 Average Rating 18 | 5 9 11 23 23 22 19 On Entrance 14 | . 8 10 12 24 24 22 Naked Turns . | . . . . . . . Heaviest Build 108 | 15 92 93 108 106 106 106 Greatest Support 42 | 26 40 26 42 36 30 36 Greatest Overweight (x) 10 | . 3 4 10 3 3 10 Average Overweight (x) 2 | . 2 3 2 2 3 3 Largest Inventory Capacity 25 | 8 25 25 25 25 25 25 Average Capacity 24 | 7 24 25 25 25 25 25 Most Carried 25 | 8 21 25 25 25 25 25 Average Carried 23 | 5 17 24 24 25 24 24 Final Capacity 25 | 8 25 25 25 25 25 25 Final Carried 25 | 8 21 25 25 25 25 25 Class Distribution -------------------- 50% | Mutant 48% | Scavenger-Mutant Dominant Class ---------------- Mutant | -10/Materials Mutant | -10/Mines Scavenger-Mutant | -9/Materials Scavenger-Mutant | -9/Mines Scavenger-Mutant | -9/Exiles Scavenger-Mutant | -8/Mines Resources | -11 -10 -10 -9 -9 -9 -8 ----------- Run | Yrd Mat Min Mat Min Exi Min Matter Collected 4683 | 315 735 309 1324 99 16 1885 Remotely . | . . . . . . . Salvage Created 6132 | 213 886 252 2488 79 . 2214 Parts 465 | 16 64 21 187 9 . 168 Haulers Intercepted 8 | . 2 . 6 . . . Recyclers Shooed 5 | . 2 . 1 1 . 1 Parts Field Recycled . | . . . . . . . Retrieved Matter . | . . . . . . . Parts Self-Destructed . | . . . . . . . Prevented . | . . . . . . . Kills | -11 -10 -10 -9 -9 -9 -8 ------- Run | Yrd Mat Min Mat Min Exi Min Combat Hostiles Destroyed 125 | . 15 10 49 2 . 49 Melee 2 | . . . 1 . . 1 Guns 47 | . 11 2 18 1 . 15 Cannons 7 | . 4 1 2 . . . AOE 67 | . . 7 26 1 . 33 Classes Destroyed 16 | 3 6 2 4 . . 1 Worker 38 | 2 4 3 10 2 . 17 Builder 27 | . 4 1 4 . . 18 Tunneler 20 | 5 2 1 2 1 . 9 Hauler 8 | . 2 . 6 . . . Recycler 14 | 1 4 2 3 . . 4 Mechanic 2 | . 1 . 1 . . . Operator 2 | . . . 2 . . . Watcher 7 | . 3 . 4 . . . Swarmer 31 | . 9 2 13 . . 7 Grunt 69 | . 6 . 26 2 . 35 Duelist 2 | . . . 1 . . 1 Protector 4 | . . . 2 . . 2 Sentry 8 | . . . 8 . . . Demolisher 1 | . . 1 . . . . Hunter 4 | . . . . . . 4 Assembled 7 | . . 7 . . . . Best Kill Streak 9 | 6 6 5 7 1 . 9 Combat Bots Only 6 | . 3 4 6 1 . 5 Max Kills in Single Turn 4 | 1 3 2 4 1 . 3 Gunslinging . | . . . . . . . Exploded 4 | . . 1 4 1 . 3 Melee 1 | . . . 1 . . 1 Uniques/NPCs Destroyed . | . . . . . . . Combat | -11 -10 -10 -9 -9 -9 -8 -------- Run | Yrd Mat Min Mat Min Exi Min Hostile Shots Fired 336 | . 69 15 94 11 . 147 Missed 86 | . 17 2 24 5 . 38 Damage Taken 2919 | . 576 218 810 84 . 1231 Core 548 | . 74 73 155 14 . 232 Absorbed by Shields 236 | . . . 20 . . 216 Ignored by Resistances 170 | . . . 98 . . 72 Regen/Repaired (Parts) 414 | . 199 . 215 . . . Core Remaining (%) 70 | 100 . 41 . . . . Volleys Fired 466 | 15 133 38 104 7 . 169 Largest 2 | 2 2 2 2 2 . 2 Hottest 100 | 70 100 100 90 90 . 90 Shots Fired 708 | 30 200 50 195 9 . 224 Gun 520 | 30 169 18 149 3 . 151 Cannon 64 | . 21 19 24 . . . Launcher 114 | . . 13 22 6 . 73 Special 10 | . 10 . . . . . Kinetic 222 | 15 73 19 24 . . 91 Thermal 189 | 15 127 18 . . . 29 Explosive 114 | . . 13 22 6 . 73 Electromagnetic 183 | . . . 149 3 . 31 Robot Hit Streak 18 | 18 9 5 11 2 . 9 Robot Miss Streak 13 | 3 2 6 13 7 . 5 Penetration Max . | . . . . . . . Secondary Targets 3 | . . . 3 . . . Max Gunslinging Chain 1 | . . . 1 . . . Shots Hit Robots 451 | 23 69 20 146 8 4 181 Core Hits 358 | 9 41 23 124 7 . 154 Critical Kills . | . . . . . . . Critical Parts Destroyed 4 | . 3 . . . . 1 Critical Strikes 9 | 2 5 . . . . 2 Burn 4 | 2 1 . . . . 1 Destroy 1 | . . . . . . 1 Blast 1 | . 1 . . . . . Smash 3 | . 3 . . . . . Melee Attacks 173 | . 14 . 73 12 4 70 Impact 14 | . 14 . . . . . Slashing 155 | . . . 73 12 . 70 Piercing . | . . . . . . . Sneak Attacks 64 | . 4 . 19 7 4 30 Combat Hostiles . | . . . . . . . Follow-up Attacks . | . . . . . . . Damage Inflicted 17325 | 287 1825 763 5401 684 . 8365 Guns 4427 | 287 684 119 1535 12 . 1790 Cannons 562 | . 235 102 225 . . . Explosions 7808 | . 533 542 2158 196 . 4379 Melee 4528 | . 373 . 1483 476 . 2196 Ramming . | . . . . . . . Kinetic 2045 | 112 462 102 225 . . 1144 Thermal 1706 | 175 537 119 514 . . 361 Explosive 7132 | . 453 542 1644 196 . 4297 Electromagnetic 1914 | . . . 1535 12 . 367 Impact 373 | . 373 . . . . . Slashing 4155 | . . . 1483 476 . 2196 Piercing . | . . . . . . . Highest Corruption 1 | . . . 1 1 1 1 Average Corruption 1 | . . . 1 1 1 1 Corruption Purged . | . . . . . . . Corruption Blocked . | . . . . . . . Effects 66 | . . . 10 8 5 43 Message Errors 11 | . . . 3 1 . 7 Matter Fused 15 | . . . 2 1 3 9 Heat Flow Errors 13 | . . . . 2 1 10 Energy Discharges 7 | . . . 2 2 . 3 Parts Fused 1 | . . . . . . 1 Data Loss (minor) 11 | . . . 2 1 . 8 Data Loss (major) 3 | . . . . . 1 2 Misfires 2 | . . . . . . 2 Alerts 2 | . . . 1 . . 1 Weapon Failures 1 | . . . . 1 . . Overload Shots . | . . . . . . . Overflow Damage 1474 | . 313 . 301 140 . 720 Projectiles . | . . . . . . . Explosions 83 | . 39 . 28 . . 16 Melee 1391 | . 274 . 273 140 . 704 Knockbacks 4 | . 1 1 2 . . . Impact . | . . . . . . . Kinetic 4 | . 1 1 2 . . . Secondary . | . . . . . . . Self-Inflicted Damage 117 | . . . 61 . . 56 Shots 5 | . . . 2 . . 3 Rammed . | . . . . . . . Targets Rammed . | . . . . . . . Kicked . | . . . . . . . Crushed . | . . . . . . . Highest Temperature 262 | 90 216 92 215 181 152 262 Average Temperature 55 | 34 50 38 62 64 80 56 Received Heat Transfer 965 | . 162 . 264 69 . 470 Effects 4 | . . . 1 . . 3 Interference 4 | . . . 1 . . 3 Siege Activations . | . . . . . . . Robots Corrupted 2 | . . . 2 . . . Combat Hostiles 2 | . . . 2 . . . Parts Fried 16 | . 4 . 10 . . 2 Impact Corruptions 7 | . 7 . . . . . Robots Melted . | . . . . . . . Combat Hostiles . | . . . . . . . Parts Melted 5 | 2 3 . . . . . Heat Transferred 3934 | 666 1382 296 750 . . 840 Parts Sabotaged . | . . . . . . . Parts Stolen . | . . . . . . . Parts Stripped . | . . . . . . . Power Chain Reactions 13 | . . . 11 . . 2 Alert | -11 -10 -10 -9 -9 -9 -8 ------- Run | Yrd Mat Min Mat Min Exi Min Peak Influence 1682 | 40 648 300 1682 813 . 1147 Initial 648 | . 26 252 42 648 . . Average 527 | 14 395 164 687 667 . 549 Maximum Alert Level 5 | . 2 1 5 3 . 4 Low Security (%) 15 | 100 9 70 16 . . 5 Level 1 21 | . 29 29 21 . . 19 Level 2 45 | . 61 . 25 68 . 59 Level 3 12 | . . . 15 31 . 15 Level 4 2 | . . . 11 . . . Level 5 2 | . . . 10 . . . High Security . | . . . . . . . Max Security . | . . . . . . . Sterilizations 1 | . . . 1 . . . Squads Dispatched 24 | . 1 1 10 . . 12 Investigation 8 | . 1 1 5 . . 1 Extermination . | . . . . . . . Reinforcement 12 | . . . 3 . . 9 Assault 4 | . . . 2 . . 2 Garrison . | . . . . . . . Intercept . | . . . . . . . Searches Triggered . | . . . . . . . Construction Impeded 10 | . . . 1 . . 9 Haulers Reinforced . | . . . . . . . Active Scanning Responses . | . . . . . . . Cargo Convoy Interrupts . | . . . . . . . Stealth | -11 -10 -10 -9 -9 -9 -8 --------- Run | Yrd Mat Min Mat Min Exi Min Distress Signals 2 | . . . 1 . . 1 Communications Jammed . | . . . . . . . Distress Signals . | . . . . . . . Times Spotted 158 | . 29 11 65 2 . 51 Peak Tracking Total 5 | . 3 3 5 2 . 5 Tactical Retreats 9 | . 5 1 2 . . 1 Traps | -11 -10 -10 -9 -9 -9 -8 ------- Run | Yrd Mat Min Mat Min Exi Min Traps Triggered 4 | . 3 . 1 . . . Indirectly 1 | . 1 . . . . . Trap Hack Attempts . | . . . . . . . Triggered . | . . . . . . . Disarmed . | . . . . . . . Reprogrammed . | . . . . . . . Reused . | . . . . . . . Traps Extracted . | . . . . . . . Installed . | . . . . . . . Triggered . | . . . . . . . Machines | -11 -10 -10 -9 -9 -9 -8 ---------- Run | Yrd Mat Min Mat Min Exi Min Machines Disabled 93 | . 30 5 46 5 . 7 Max in Single Turn 2 | . 2 1 2 1 . 1 Machines Repaired . | . . . . . . . Machines Dismantled . | . . . . . . . Machines Sabotaged . | . . . . . . . Overloaded Fab Kills . | . . . . . . . Hacking | -11 -10 -10 -9 -9 -9 -8 --------- Run | Yrd Mat Min Mat Min Exi Min Machines Accessed 27 | . 7 1 14 . 4 1 Terminals 15 | . 5 . 9 . . 1 Fabricators . | . . . . . . . Repair Stations 3 | . 1 . 2 . . . Recycling Units 2 | . 1 . 1 . . . Scanalyzers 2 | . . . 2 . . . Garrison Access . | . . . . . . . Total Hacks 136 | . 28 1 57 . 49 1 Successful 106 | . 16 1 39 . 49 1 Failed 30 | . 12 . 18 . . . Catastrophic 2 | . . . 2 . . . Database Lockouts . | . . . . . . . Manual 47 | . 19 . 27 . . 1 Terminals 58 | . 20 . 37 . . 1 Fabricators . | . . . . . . . Repair Stations 14 | . 6 . 8 . . . Recycling Units 4 | . 2 . 2 . . . Scanalyzers 10 | . . . 10 . . . Garrison Access . | . . . . . . . Terminal Hacks 62 | . 2 1 10 . 49 . Record 49 | . . . . . 49 . Robot Analysis 1 | . . . 1 . . . Prototype ID Bank 1 | . . . 1 . . . Open Door 1 | . . 1 . . . . Terminal Index 2 | . 1 . 1 . . . Alert Level 1 | . . . 1 . . . Unreport Threat 3 | . . . 3 . . . Locate Traps 2 | . 1 . 1 . . . Hauler Manifests 1 | . . . 1 . . . Zone Layout 1 | . . . 1 . . . Fabricator Hacks . | . . . . . . . Repair Station Hacks 13 | . 6 . 7 . . . Scan Component 7 | . 3 . 4 . . . Repair 6 | . 3 . 3 . . . Recycling Unit Hacks . | . . . . . . . Scanalyzer 8 | . . . 8 . . . Insert Component 4 | . . . 4 . . . Analyze 4 | . . . 4 . . . Garrison Access Hacks . | . . . . . . . Unauthorized Hacks 23 | . 8 . 14 . . 1 Terminals 19 | . 8 . 10 . . 1 Assimilate 1 | . 1 . . . . . Botnet 3 | . 1 . 2 . . . Operators 2 | . 1 . 1 . . . Skim 10 | . 5 . 5 . . . Sabotage 1 | . . . . . . 1 Search 2 | . . . 2 . . . Fabricators . | . . . . . . . Repair Stations . | . . . . . . . Recycling Units 2 | . . . 2 . . . Recyclers 1 | . . . 1 . . . Tunnel 1 | . . . 1 . . . Scanalyzers 2 | . . . 2 . . . Extract 2 | . . . 2 . . . Garrison Access . | . . . . . . . Data Cores Recovered . | . . . . . . . Used . | . . . . . . . Hacking Detections 18 | . 6 . 12 . . . Full Trace Events . | . . . . . . . Feedback Events . | . . . . . . . Feedback Blocked . | . . . . . . . Robot Schematics Acquired . | . . . . . . . Robots Built . | . . . . . . . Authchips . | . . . . . . . Time . | . . . . . . . Total Robot Build Rating . | . . . . . . . Part Schematics Acquired 10 | . . . 10 . . . Parts Built . | . . . . . . . Authchips . | . . . . . . . Time . | . . . . . . . Total Part Build Rating . | . . . . . . . Parts Repaired 6 | . 3 . 3 . . . Time 205 | . 84 . 121 . . . Parts Recycled . | . . . . . . . Recycled Matter . | . . . . . . . Retrieved Matter . | . . . . . . . Retrieved Components . | . . . . . . . Parts Scanalyzed 4 | . . . 4 . . . Part Schematics Acquired 4 | . . . 4 . . . Parts Damaged . | . . . . . . . Bothacking | -11 -10 -10 -9 -9 -9 -8 ------------ Run | Yrd Mat Min Mat Min Exi Min Used RIF Installer . | . . . . . . . Robots Hacked 4 | . . . . . 4 . Non-combat 3 | . . . . . 3 . Combat 1 | . . . . . 1 . Robot Hacks Applied 4 | . . . . . 4 . parse_system 4 | . . . . . 4 . Relay Couplers Released . | . . . . . . . Fabnet Peak Effective % . | . . . . . . . Robots Rewired . | . . . . . . . Allies Hacked . | . . . . . . . Hacks Repelled . | . . . . . . . Allies | -11 -10 -10 -9 -9 -9 -8 -------- Run | Yrd Mat Min Mat Min Exi Min Total Allies 5 | . 1 4 . . . . Largest Group 5 | . 1 5 4 . . . Highest-Rated Group 81 | . 10 81 73 . . . Highest-Rated Ally 31 | . 10 31 31 . . . Total Orders 6 | . 6 . . . . . STAY 3 | . 3 . . . . . FOLLOW 3 | . 3 . . . . . Ally Attacks 28 | . . 6 22 . . . Total Damage 289 | . . 56 233 . . . Kills 7 | . . 1 6 . . . Allies Corrupted . | . . . . . . . Allies Melted . | . . . . . . . Intel | -11 -10 -10 -9 -9 -9 -8 ------- Run | Yrd Mat Min Mat Min Exi Min Robot Analysis Total 1 | . . . 1 . . . Derelict Logs Recovered 2 | . . 1 . 1 . . Drone Launches . | . . . . . . . Drone Recoveries . | . . . . . . . Exploration | -11 -10 -10 -9 -9 -9 -8 ------------- Run | Yrd Mat Min Mat Min Exi Min Turns Passed 14383 | 117 2076 1336 3610 750 620 5874 Spaces Moved 7574 | 51 1024 568 2133 566 468 2764 Core 1 | 1 . . . . . . Treads 4 | . 4 . . . . . Legs . | . . . . . . . Wheels 7569 | 50 1020 568 2133 566 468 2764 Hover . | . . . . . . . Flight . | . . . . . . . Fastest Speed 50 | 50 90 135 116 116 125 116 Average Speed 127 | 89 133 138 128 121 125 125 Slowest Speed 320 | 100 320 140 230 125 125 230 Overloaded Moves . | . . . . . . . Propulsion Burnouts . | . . . . . . . Robots Hopped . | . . . . . . . Cave-ins Triggered . | . . . . . . . Exploration Rate (%) 83 | 4 99 93 100 98 91 101 Regions Visited 6 Branch Regions 4 Pre-discovered Areas 6 | . 1 . 3 1 1 . Known Exits Taken 2 | . . 1 1 . . . Unknown Exits Taken 4 | 1 1 . . 1 1 . Scrap Searched 3 | . . 1 . 1 . 1 Spaces Dug 56 | . 7 12 9 . . 28 Terrain Destroyed 1180 | . 216 162 225 36 . 541 Melee 36 | . 2 . 6 . . 28 Projectile 6 | . 5 1 . . . . AOE 1138 | . 209 161 219 36 . 513 Terrain Rammed . | . . . . . . . Walls Destroyed . | . . . . . . . Machines Disabled . | . . . . . . . Actions | -11 -10 -10 -9 -9 -9 -8 --------- Run | Yrd Mat Min Mat Min Exi Min Total 11186 | 88 1461 1069 2657 596 501 4814 Wait 2614 | 8 222 442 212 . 27 1703 Move 7568 | 50 1023 567 2132 565 467 2764 Hop . | . . . . . . . Pick Up 60 | 8 16 8 16 1 1 10 Fast Attach 20 | 7 2 . 5 . . 6 Attach 17 | . 3 . 2 . . 12 Detach 5 | . . . . . . 5 Swap 212 | . 47 8 87 9 1 60 Drop 51 | . 1 6 26 2 1 15 Fire 466 | 15 133 38 104 7 . 169 Melee 173 | . 14 . 73 12 4 70 Ram . | . . . . . . . Kick . | . . . . . . . Crush . | . . . . . . . Escape Stasis . | . . . . . . . Rewire . | . . . . . . . Trap . | . . . . . . . Miscellaneous . | . . . . . . . Route ------- -11/Scrapyard -10/Materials (discovered 5 exits: *Mat x3 / *Min / [Sub]) -10/Mines (discovered 2 exits: *Mat x2) -9/Materials (discovered 6 exits: *Mat x3 / *Min x2 / *Sto) -9/Mines (discovered 4 exits: *Mat x2 / *Exi / [*Zio]) -9/Exiles (discovered 2 exits: *Min x2) -8/Mines (discovered 2 exits: *Mat x2) History --------- Turn | Location | Event 24 | -11/Scrapyard | Discovered new exit (range 16) 118 | -11/Scrapyard | Entered Materials 338 | -10/Materials | Build established: Mutant 606 | -10/Materials | Discovered new exit (range 15) 724 | -10/Materials | Discovered new exit (range 5) 814 | -10/Materials | Discovered new exit (range 14) 917 | -10/Materials | Discovered new exit (range 3) 1130 | -10/Materials | Discovered new exit (range 6) 1229 | -10/Materials | Learned 4 Recycling zone layouts 1303 | -10/Materials | Learned location of 1 exit from Recycling 1365 | -10/Materials | Learned location of Subcaves (-10) 1418 | -10/Materials | Learned Storage trap positions 1456 | -10/Materials | Repaired Lgt. Treads 1461 | -10/Materials | Identified exit to Materials 1483 | -10/Materials | Repaired Lgt. Cannon 1516 | -10/Materials | Repaired Particle Gun 1582 | -10/Materials | Learned location of 2 exits from Subcaves 1642 | -10/Materials | Learned location of 1 exit from Storage 2194 | -10/Materials | Entered Mines 2194 | -10/Mines | Accompanied by 1 ally 2290 | -10/Mines | Met a Derelict shopkeep closing up shop 2428 | -10/Mines | Discovered exit to Materials (range 15) 2450 | -10/Mines | Received a Rocket Launcher from a helpful Derelict 2470 | -10/Mines | Assembled infested the area 3083 | -10/Mines | Assisted by bots powering up and referring to "LRC-V3" 3161 | -10/Mines | Met a Derelict testing a Signal Generator 3166 | -10/Mines | Found Signal Generator 3195 | -10/Mines | Core integrity fell below 50% 3274 | -10/Mines | Found a hidden stash of uninstalled traps 3291 | -10/Mines | Discovered exit to Materials (range 10) 3530 | -10/Mines | Entered Materials 3530 | -9/Materials | Accompanied by 4 allies 3530 | -9/Materials | Evolved 2 slots: Propulsion x1, Utility x1 3531 | -9/Materials | Identified exit to Mines 3531 | -9/Materials | Identified exit to Storage 4248 | -9/Materials | Discovered new exit (range 8) 4254 | -9/Materials | Learned location of Zion (-7) 4319 | -9/Materials | Learned location of Mines (-9) 4338 | -9/Materials | Identified exit to Materials 4348 | -9/Materials | Learned Materials stockpile data 4366 | -9/Materials | Learned Storage emergency access door positions 4434 | -9/Materials | Learned Storage trap positions 4914 | -9/Materials | Build established: Scavenger-Mutant 5009 | -9/Materials | Repaired Reactive Plating 5042 | -9/Materials | Repaired Rocket Launcher 5094 | -9/Materials | Repaired Imp. EM Shotgun 6330 | -9/Materials | First assault squad dispatched 6858 | -9/Materials | Sterilization system engaged 6858 | -9/Materials | Non-combat units ordered to evacuate 6958 | -9/Materials | Combat units ordered to evacuate 7140 | -9/Materials | Entered Mines 7155 | -9/Mines | Discovered exit to Materials (range 8) 7161 | -9/Mines | Met a Derelict bent on vengeance 7163 | -9/Mines | A Derelict revealed a hidden shortcut to a safe place 7244 | -9/Mines | Discovered exit to Materials (range 9) 7261 | -9/Mines | A weapon hastily lodged in a ceiling crevice suddenly fell to the ground 7574 | -9/Mines | Deemed a non-threat by the Exiles lab entrance 7574 | -9/Mines | Discovered new exit (range 5) 7890 | -9/Mines | Entered Exiles 7907 | -9/Exiles | Discovered new exit (range 15) 7924 | -9/Exiles | Met 8R-AWN 7946 | -9/Exiles | Met EX-HEX 7994 | -9/Exiles | Met EX-DEC 8048 | -9/Exiles | Met EX-BIN 8245 | -9/Exiles | Visited The Gauntlet 8437 | -9/Exiles | Discovered new exit (range 10) 8510 | -9/Exiles | Entered Mines 8898 | -8/Mines | Core integrity fell below 50% 9396 | -8/Mines | Discovered exit to Materials (range 11) 9483 | -8/Mines | Discovered exit to Materials (range 4) 9879 | -8/Mines | Build established: Mutant 11879 | -8/Mines | Build established: Scavenger-Mutant 13534 | -8/Mines | Core integrity fell below 20% 13567 | -8/Mines | Lost 3 parts (1n1u1w) 14384 | -8/Mines | Destroyed by G-47 Trooper with Particle Gun Last Messages --------------- 14046_ U-05 Engineer lays Concrete. 14053_ U-05 Engineer builds a Wall. 14066_ N/P>WD>%LJTVY#W>RQQU3 14066_ U-05 Engineer lays Concrete. 14070_ K-01 Serf collects debris. 14071_ U-05 Engineer lays Concrete. 14078_ U-05 Engineer builds a Wall. 14088_ K-01 Serf collects debris. 14108_ System corrupted: Energy discharge (-58). 14133_ U-05 Engineer builds a Wall. 14177_ U-05 Engineer lays Concrete. 14179_ U-05 Engineer builds a Wall. 14187_ U-05 Engineer lays Concrete. 14212_ System corrupted: Component data lost. 14218_ U-05 Engineer lays Concrete. 14230_ U-05 Engineer builds a Wall. 14365_ ALERT: Construction progress impeded, dispatching reinforcements to local area. 14377_ System corrupted: Matter fused (-6). 14382_ G-47 Trooper destroyed. Map ----- +----------------------------------------------------+ | | | | | | | | | ?????????????????????????????????????????? | | ?????????????????????????????????????????? | | ???????#########?????????????????????????? | | ???????# ##????????????????????????? | | ?#####?# #???####?????????????????? | | ?# #### ##### ##????????????????? | | ?# ### #????????????????? | | ?# ##?## ##########???????? | | ?# #???## ##### # ## ### ##??????? | | ## #????####??## # # < #??????? | | ##++##??????????# # ##??????? | | #???????????# # # #??????? | | #???????????# # g ##??????? | | ##########????# ## #??????? | | * ##??# #????# !# = ##??????? | | [ ####" #????# # ##?????? | | = #????## [ # #?????? | | ######" "#????###### ### #?????? | | ??????# """ "#?????## !# #?## ##?????? | | ??????# #??????# #??###??????? | | ??????#######?????## ## < ##???????????? | | ??????################# @ ###???????????? | | ######## ###??????????? | | # ##### ###?????????? | | ####| ########### != # #?????????? | | ## # #???????#### ###?????????? | | ##%## ##????#### ## ## #?????????? | | # =### #???## *! ## ##?????????? | | # ####???# # = ####??????????? | | ####### # # ## #?????????????? | | = ### ## ### #### ##?????????????? | | ! ## #### ## ####??????????????? | | = ### # #?????????????????? | | ####?????????????????? | | #### [ #????####?????????? | | ## ## = #???## ##????????? | | ## ##### # #??## #????????? | | ###?## ### # !##??# #????????? | | ########?## #####!#??## ##????????? | | #????# ##???#%#??# ##????????? | | #????# ##????#*#?## ######???? | | #????# #?????# ### ## ##??? | | ##???# #?????# #??? | | #??### #?????###### ##?? | | " " ##??### #??????????###### #?? | | """ #?????# #???????????????### #?? | +----------------------------------------------------+ Best States ------------- Heat Dissipation 28 Energy Generation 18 Energy Capacity 280 Matter Stores 390 Matter Capacity 400 Sight Range 16 Terrain Scan Density 10 Armor Coverage 230 Resistance: KI 20 Weapon Shielding 33 Evasion (%) 42 Recoil Reduction 2 Item Schematics ----------------- Cmb. Airjet | -9/Materials | Scanalyzed ECM Suite | -9/Materials | Scanalyzed Beamcaster | -9/Materials | Scanalyzed Plasma Cutter | -9/Materials | Scanalyzed Med. Storage Unit | -9/Materials | Extracted Signal Interpreter | -9/Materials | Extracted Imp. Light Cannon | -9/Materials | Extracted Mining Laser | -9/Materials | Extracted Med. Matter Pod | -9/Materials | Extracted Seismic Detector | -9/Materials | Extracted Robot Schematics ------------------ None Fabricated ------------ Nothing Alien Tech Used ----------------- None Achievements -------------- None Challenges ------------ None Game ------ Seed SeismicFusionMegatreads Manual? 0 Play Time 02:34:25 Cumulative 255.3 hours Start 2024.12.25 @ 21:11:19 End 2024.12.26 @ 01:58:37 Sessions 1 Manual Loads 0 Difficulty Rogue Special Mode None Game No. 44 Rogue 44 Adventurer 0 Explorer 0 Win Type - Total 10 Types 3/0/4/1/1/0/0/1/0 Lore% 49 Gallery% 69 Achievement% 64 Wizard Run 0 Options --------- Layout 0 ASCII 0 Keyboard 1 Movement Arrows Keybinds 0 Fullscreen 1 Font 12/Cog Map View 83x54 Zoom Use 0% Tactical HUD 1 Map Filters NONE Filters NONE Steam 0 RUN: 3cc09027-acd0-42c7-a724-629d31ce6b32